bitfinex/quotes_ETHUSD_20250523
["timestamp","ask_amount","ask_price","bid_price","bid_amount"]
[1748017182729,3.92274504,2549.3,2549.0,8.0]
[1748017182934,0.18651901,2549.8,2549.1,24.778]
[1748017183125,3.922694,2549.3,2549.1,24.778]
[1748017183348,3.9227993,2549.2,2549.1,24.778]
[1748017183860,3.92265063,2549.3,2549.1,24.778]
[1748017184151,3.92260261,2549.4,2549.1,24.778]
[1748017184317,1.00071107,2550.0,2549.1,27.70355962]
[1748017184504,11.754,2550.3,2549.3,4.47759616]
[1748017184702,3.92202226,2549.8,2549.3,4.47759616]
[1748017184905,3.92192297,2549.8,2549.3,4.47759616]
[1748017185109,3.92156922,2550.0,2549.5,4.47759616]
[1748017185314,3.92203004,2549.7,2549.6,16.928]
[1748017185508,3.92203004,2549.7,2549.6,41.708]
[1748017186349,3.92203004,2549.7,2549.6,16.928]
[1748017186596,3.92203004,2549.7,2549.6,41.708]
[1748017188457,3.92203004,2549.7,2549.6,41.709]
[1748017188830,3.92203004,2549.7,2549.6,16.928]
[1748017189070,4.74277864,2549.7,2549.6,16.928]
[1748017189230,5.56817864,2549.7,2549.6,16.928]
[1748017189430,5.56817864,2549.7,2549.6,41.709]
[1748017189935,5.93174366,2549.7,2549.6,41.709]
[1748017190349,5.11099506,2549.7,2549.6,41.709]
[1748017190870,5.11099506,2549.7,2549.6,16.928]
[1748017191039,4.28559506,2549.7,2549.6,41.022]
[1748017194681,0.36356502,2549.7,2549.6,41.022]
[1748017194977,3.92179699,2549.9,2549.6,41.022]
[1748017195179,3.92191831,2549.8,2549.6,41.022]
[1748017195582,20.0,2550.0,2549.6,16.928]
[1748017195876,23.92163904,2550.0,2549.7,35.85]
[1748017196075,20.0,2550.0,2549.8,4.47759616]
[1748017197682,23.92159423,2550.0,2549.8,4.47759616]
[1748017198446,23.92164562,2550.0,2549.9,24.094]
[1748017199281,20.0,2550.0,2549.9,24.094]
[1748017199648,20.0,2550.0,2549.9,27.679]
[1748017200349,3.92187622,2549.8,2549.6,16.928]
[1748017200569,3.92203004,2549.7,2549.6,24.928]
[1748017200771,3.92203004,2549.7,2549.6,48.378]
[1748017201286,3.92203004,2549.7,2549.6,40.378]
[1748017202186,3.92203004,2549.7,2549.6,52.133]
[1748017202584,3.92203004,2549.7,2549.6,16.928]
[1748017202782,3.92181557,2549.9,2549.6,52.133]
[1748017202994,3.92203004,2549.7,2549.6,56.08299309]
[1748017203294,3.92181952,2549.9,2549.6,56.08299309]
[1748017203597,20.0,2550.0,2549.7,0.8227]
[1748017203791,20.0,2550.0,2549.8,8.0]
[1748017204107,23.92156862,2550.0,2549.9,11.755]
[1748017205797,3.92172242,2549.9,2549.7,8.8227]
[1748017205998,3.92172242,2549.9,2549.8,43.204]
[1748017206204,3.92172242,2549.9,2549.8,8.0]
[1748017206357,20.0,2550.0,2549.8,45.77907]
[1748017206554,20.0,2550.0,2549.9,11.92172242]
[1748017206800,20.0,2550.0,2549.9,16.39931858]
[1748017207863,20.0,2550.0,2549.9,51.60331858]
[1748017208072,20.0,2550.0,2549.9,54.81653331]
[1748017208362,19.91885214,2550.0,2549.9,56.12903331]
[1748017209488,19.91885214,2550.0,2549.9,51.65731089]
[1748017209672,19.91885214,2550.0,2549.9,35.3505]
[1748017210382,19.91885214,2550.0,2549.9,39.27222242]
[1748017210578,19.91885214,2550.0,2549.9,35.3505]
[1748017210763,19.91885214,2550.0,2549.9,39.27222242]
[1748017211096,19.91885214,2550.0,2549.9,35.3505]
[1748017211301,19.91885214,2550.0,2549.9,39.30049309]
[1748017211812,19.91885214,2550.0,2549.7,11.92197391]
[1748017211999,19.91885214,2550.0,2549.9,34.586]
[1748017212496,19.91885214,2550.0,2549.9,51.78671858]
[1748017213361,19.91885214,2550.0,2549.9,52.33671858]
[1748017213362,18.91927598,2550.0,2549.9,52.33671858]
[1748017213566,18.74982781,2550.0,2549.9,56.28671167]
[1748017214101,18.06212781,2550.0,2549.9,56.28671167]
[1748017214295,17.85112781,2550.0,2549.9,21.70071167]
[1748017214497,17.85112781,2550.0,2549.9,56.28671167]
[1748017215200,16.91325766,2550.0,2549.9,56.28671167]
[1748017215395,14.95493086,2550.0,2549.9,56.28671167]
[1748017215606,12.66660406,2550.0,2549.9,56.28671167]
[1748017215899,8.74995046,2550.0,2549.9,56.28671167]
[1748017216068,1.15965354,2550.0,2549.9,56.28671167]
[1748017216679,0.05,2550.9,2550.7,3.92038879]
[1748017216882,0.05,2550.9,2550.8,59.509]
[1748017217082,0.05,2550.9,2550.8,65.26763035]
[1748017217521,0.05,2550.9,2550.8,69.74522651]
[1748017217698,0.3664057,2551.4,2551.2,3.91958275]
[1748017217932,0.3664057,2551.4,2551.3,23.67057041]
[1748017218207,0.3664057,2551.4,2551.3,24.49457041]
[1748017218411,0.3664057,2551.4,2551.3,8.0]
[1748017218606,0.3664057,2551.4,2551.3,22.83]
[1748017218607,4.28594118,2551.4,2551.3,22.83]
[1748017218815,0.3664057,2551.4,2551.3,22.83]
[1748017219387,0.8235,2551.8,2551.3,3.4581]
[1748017219586,0.05,2551.9,2551.5,3.91911872]
[1748017219831,3.96867048,2551.9,2551.5,0.8142]
[1748017220131,0.05,2551.9,2551.5,9.2109866]
[1748017220324,0.05,2551.9,2551.5,5.29179616]
[1748017220528,0.05,2551.9,2551.6,11.91896775]
[1748017220829,0.05,2551.9,2551.8,11.91880241]
[1748017220991,0.05,2551.9,2551.8,16.39639857]
[1748017221190,1.91606859,2552.5,2552.2,12.73238822]
[1748017221409,1.91606859,2552.5,2552.3,50.883]
[1748017221736,2.49088916,2553.2,2552.3,50.883]
[1748017221737,1.91606859,2553.2,2552.3,50.883]
[1748017221943,3.91703267,2553.0,2552.5,8.0]
[1748017222108,3.91703267,2553.0,2552.4,8.0]
[1748017222435,3.9170469,2553.0,2552.4,11.91781752]
[1748017222735,3.91730018,2552.8,2552.4,8.0]
[1748017222937,3.96715057,2552.9,2552.6,8.0]
[1748017223139,3.91726731,2552.8,2552.7,22.213]
[1748017223329,0.05,2552.9,2552.7,22.213]
[1748017223629,0.05,2552.9,2552.8,41.957]
[1748017224037,3.96711387,2552.9,2552.8,41.954]
[1748017224253,0.05,2552.9,2552.3,16.92]
[1748017224465,3.91747169,2552.7,2552.4,41.954]
[1748017224763,3.91772771,2552.5,2552.4,41.954]
[1748017225073,3.91772771,2552.5,2552.4,8.0]
[1748017225360,3.91772771,2552.5,2552.4,30.207]
[1748017225562,3.91772771,2552.5,2552.4,8.0]
[1748017225855,0.05,2552.9,2552.4,30.207]
[1748017226055,3.91757451,2552.6,2552.5,41.951]
[1748017226655,3.91757451,2552.6,2552.5,30.204]
[1748017226874,4.70107573,2552.6,2552.5,30.204]
[1748017227034,0.78350122,2552.6,2552.5,30.204]
[1748017227234,3.91742077,2552.7,2552.6,8.0]
[1748017227455,3.91757423,2552.6,2552.5,30.204]
[1748017228450,3.91757423,2552.6,2552.5,22.204]
[1748017228769,3.9178812,2552.4,2552.3,24.92]
[1748017228975,3.9178812,2552.4,2552.3,47.124]
[1748017229577,3.9178812,2552.4,2552.3,24.92]
[1748017229882,3.9178812,2552.4,2550.8,0.7762]
[1748017229883,0.7557,2551.6,2550.8,0.7762]
[1748017230392,3.91933994,2551.5,2550.8,4.69652113]
[1748017230695,3.91935927,2551.5,2551.1,8.0]
[1748017230979,0.7557,2551.6,2551.3,8.0]
[1748017231141,3.91891471,2551.8,2551.5,8.0]
[1748017231345,3.91859933,2552.0,2551.5,8.0]
[1748017231694,3.91866056,2551.9,2551.5,8.0]
[1748017232100,3.91851226,2552.0,2551.5,8.0]
[1748017232269,4.70725678,2552.3,2551.5,8.0]
[1748017232270,3.91880817,2551.8,2551.5,8.0]
[1748017232473,3.91854507,2552.0,2551.5,8.0]
[1748017232805,4.70725678,2552.3,2551.5,8.0]
[1748017232806,3.91835151,2552.1,2551.5,8.0]
[1748017232947,3.91835151,2552.1,2551.6,0.03918167]
[1748017233149,3.91835151,2552.1,2551.6,0.03918136]
[1748017233380,3.91835151,2552.1,2551.5,11.91917278]
[1748017233583,4.70728243,2552.3,2551.6,11.91910816]
[1748017233908,0.8156,2552.8,2551.8,0.55]
[1748017234110,3.91768378,2552.6,2552.2,8.0]
[1748017234248,3.91768378,2552.6,2552.4,8.0]
[1748017234654,3.91772771,2552.5,2552.4,8.0]
[1748017237019,3.91772771,2552.5,2552.4,29.532]
[1748017237175,3.9178812,2552.4,2552.3,16.913]
[1748017237381,3.9178812,2552.4,2552.3,46.445]
[1748017237681,3.9178812,2552.4,2552.3,38.445]
[1748017238593,0.8156,2552.8,2552.3,38.445]
[1748017238794,3.91742077,2552.7,2552.3,38.445]
[1748017239113,3.9178812,2552.4,2552.3,16.913]
[1748017239290,3.9178812,2552.4,2552.3,38.445]
[1748017240799,3.9178812,2552.4,2552.3,16.913]
[1748017240993,3.9178812,2552.4,2552.3,38.445]
[1748017241191,3.9178812,2552.4,2552.3,16.913]
[1748017241381,3.9178812,2552.4,2552.3,38.445]
[1748017241710,4.74877399,2552.4,2552.3,38.445]
[1748017242219,3.9178812,2552.4,2552.3,38.445]
[1748017242517,3.9178812,2552.4,2552.3,46.445]
[1748017244215,3.9178812,2552.4,2552.3,24.913]
[1748017244418,3.9178812,2552.4,2552.3,46.445]
[1748017244621,3.9178812,2552.4,2552.3,24.913]
[1748017244786,5.52214397,2552.4,2552.3,38.444]
[1748017245323,5.52214397,2552.4,2552.3,16.913]
[1748017245487,5.97726795,2552.4,2552.3,38.444]
[1748017245887,6.33486481,2552.4,2552.3,38.444]
[1748017246144,6.33486481,2552.4,2552.3,16.913]
[1748017247237,5.87974083,2552.4,2552.0,21.531]
[1748017247453,5.87974083,2552.4,2549.9,0.8291]
[1748017247454,3.92126107,2550.2,2549.9,0.8291]
[1748017247608,3.92126107,2550.2,2550.1,21.583]
[1748017247928,3.92096427,2550.4,2550.1,21.583]
[1748017248129,4.46948845,2551.4,2550.2,8.0]
[1748017248327,3.92099115,2550.4,2550.2,8.0]
[1748017248536,0.7683,2551.0,2550.3,21.533]
[1748017248733,4.37793462,2550.9,2550.3,21.533]
[1748017249026,3.92066472,2550.6,2550.4,8.7762]
[1748017249822,3.92079984,2550.5,2550.4,8.7762]
[1748017250325,3.92079984,2550.5,2550.4,8.0]
[1748017250990,3.92067211,2550.6,2550.4,8.0]
[1748017251200,3.92079984,2550.5,2550.4,8.0]
[1748017251501,3.92071877,2550.6,2550.4,8.0]
[1748017251732,3.92079984,2550.5,2550.4,8.0]
[1748017252428,3.92120576,2550.3,2550.1,8.05]
[1748017252608,3.92079984,2550.5,2550.3,8.0]
[1748017252806,3.92109375,2550.4,2550.3,8.0]
[1748017254622,3.92119428,2550.3,2550.1,20.5538]
[1748017254822,0.8129,2551.0,2550.2,29.538]
[1748017255147,3.92098567,2550.4,2550.2,29.538]
[1748017255655,3.92098567,2550.4,2550.3,21.538]
[1748017257138,3.92085174,2550.5,2550.4,8.0]
[1748017257304,3.92079984,2550.5,2550.4,8.0]
[1748017258439,3.92071375,2550.6,2550.4,8.0]
[1748017259329,4.73296098,2551.0,2550.4,8.0]
[1748017259515,3.92072456,2550.6,2550.4,8.0]
[1748017259907,3.92079984,2550.5,2550.4,8.0]
[1748017260106,3.92105734,2550.4,2550.1,20.5558]
[1748017260321,3.92105734,2550.4,2550.2,20.936]
[1748017260637,3.92042921,2550.8,2550.3,8.0]
[1748017260836,3.92014954,2551.0,2550.5,8.0]
[1748017261037,5.15535236,2551.3,2550.4,8.0]
[1748017261240,3.92066331,2550.6,2550.4,8.0]
[1748017261426,3.92027386,2550.9,2550.4,8.0]
[1748017261613,3.91995493,2551.1,2550.4,8.0]
[1748017261852,3.91995493,2551.1,2550.5,2.56499931]
[1748017262015,0.45773931,2551.4,2550.5,2.56499931]
[1748017262214,3.91980173,2551.2,2550.6,8.0]
[1748017262540,3.92022731,2550.9,2550.7,11.749]
[1748017262744,3.92011974,2551.0,2550.9,8.0]
[1748017263242,3.91944992,2551.4,2551.0,8.0]
[1748017263446,3.91987769,2551.1,2551.0,8.0]
[1748017263606,3.92011945,2551.0,2550.7,0.7755]
[1748017263815,3.92033871,2550.8,2550.7,0.7755]
[1748017264025,3.9202514,2550.9,2550.8,8.0]
[1748017265051,3.92015001,2551.0,2550.8,8.0]
[1748017265419,3.92018503,2550.9,2550.8,8.0]
[1748017265855,3.92015001,2551.0,2550.8,8.0]
[1748017265856,3.92010791,2551.0,2550.8,8.0]
[1748017266358,3.92018503,2550.9,2550.8,8.0]
[1748017267933,3.919935,2551.1,2550.8,8.0]
[1748017268144,3.92010282,2551.0,2550.8,8.0]
[1748017268343,3.92018503,2550.9,2550.8,8.0]
[1748017268542,0.7815,2551.6,2550.8,9.83829164]
[1748017268746,0.45773931,2551.8,2550.8,9.83829164]
[1748017268747,0.45773931,2551.8,2550.9,0.55]
[1748017269065,3.91944946,2551.4,2550.9,8.55]
[1748017269237,3.91953368,2551.4,2550.9,12.47012158]
[1748017269433,3.91965383,2551.3,2551.0,1.43084132]
[1748017270147,3.91984839,2551.2,2550.9,0.55]
[1748017270466,3.91994861,2551.1,2551.0,8.0]
[1748017270654,3.91895599,2551.7,2551.0,8.0]
[1748017270854,3.91987769,2551.1,2551.0,8.0]
[1748017271047,3.92018401,2551.0,2550.8,8.0]
[1748017271254,3.91967686,2551.3,2551.0,8.0]
[1748017271642,3.91880241,2551.8,2551.1,0.55]
[1748017271867,3.91933696,2551.5,2551.3,0.7582]
[1748017272252,3.91896838,2551.7,2551.3,0.7582]
[1748017272576,0.45773931,2552.1,2551.4,8.0]
[1748017272874,0.45773931,2552.3,2551.5,40.12218178]
[1748017273076,3.91835839,2552.1,2551.7,8.0]
[1748017273375,3.91849529,2552.0,2551.9,8.0]
[1748017273672,3.91841728,2552.1,2551.9,8.0]
[1748017273847,3.91849529,2552.0,2551.9,8.0]
[1748017274569,3.91849529,2552.0,2551.9,28.333]
[1748017274867,3.91838425,2552.1,2551.9,28.333]
[1748017275174,3.91849529,2552.0,2551.9,28.333]
[1748017276934,3.91849529,2552.0,2551.9,8.0]
[1748017277146,3.91849529,2552.0,2551.9,28.333]
[1748017279383,4.69499046,2551.8,2551.6,24.915]
[1748017279582,3.91889046,2551.8,2551.7,28.332]
[1748017280097,3.91872495,2551.9,2551.8,8.0]
[1748017281306,0.7676,2552.4,2551.8,8.0]
[1748017281470,3.91864884,2551.9,2551.8,8.0]
[1748017282411,3.91772771,2552.5,2551.8,8.7733]
[1748017282707,3.91860144,2552.0,2551.9,40.077]
[1748017282883,3.91823598,2552.2,2552.0,8.0]
[1748017282884,3.91840481,2552.1,2552.0,8.0]
[1748017284457,3.91823598,2552.2,2552.0,8.0]
[1748017284458,3.91825615,2552.2,2552.0,8.0]
[1748017284989,3.91834175,2552.1,2552.0,8.0]
[1748017285587,3.91834175,2552.1,2552.0,28.33]
[1748017286313,3.91763084,2552.6,2552.0,28.33]
[1748017286314,3.91757423,2552.6,2552.0,28.33]
[1748017286517,0.7676,2552.7,2552.1,8.0]
[1748017286717,0.7676,2552.7,2551.7,0.55]
[1748017286917,3.91810921,2552.3,2551.9,8.0]
[1748017287072,3.91819371,2552.2,2551.7,12.46887183]
[1748017287272,3.91809565,2552.3,2551.8,3.91877375]
[1748017287518,3.91774953,2552.5,2552.1,8.7907]
[1748017287814,3.91764442,2552.6,2552.3,8.0]
[1748017288184,3.91772854,2552.5,2552.3,8.0]
[1748017289000,3.9175658,2552.7,2552.3,8.0]
[1748017289204,3.91759358,2552.6,2552.3,8.0]
[1748017289600,4.42491436,2552.9,2552.3,11.91798473]
[1748017289819,3.91739047,2552.8,2552.3,11.91798473]
[1748017290119,3.91729001,2552.8,2552.3,15.86796626]
[1748017290622,0.05,2552.9,2552.5,8.0]
[1748017290623,3.96718126,2552.9,2552.5,8.0]
[1748017290787,3.91727992,2552.8,2552.4,8.55]
[1748017290991,3.91727992,2552.8,2552.4,10.38829164]
[1748017291190,0.05,2552.9,2552.4,2.38829164]
[1748017291380,3.91727819,2552.8,2552.4,2.38829164]
[1748017291581,0.05,2552.9,2552.4,2.38829164]
[1748017291582,3.96719734,2552.9,2552.4,6.30614821]
[1748017292022,3.91729317,2552.8,2552.4,6.30614821]
[1748017292178,3.96719636,2552.9,2552.4,6.30614821]
[1748017292522,3.9172771,2552.8,2552.4,6.30614821]
[1748017292908,3.9172771,2552.8,2552.4,2.38829164]
[1748017293249,3.9172771,2552.8,2552.4,0.55]
[1748017293395,0.05,2552.9,2552.6,8.0]
[1748017293589,0.05,2552.9,2552.6,8.7568]
[1748017293827,0.05,2552.9,2552.6,0.7568]
[1748017294011,3.96713434,2552.9,2552.8,8.0]
[1748017294224,4.75552589,2552.9,2552.8,27.725]
[1748017294405,4.75552589,2552.9,2552.8,19.725]
[1748017294607,0.8285,2552.7,2552.2,16.913]
[1748017294926,3.9179468,2552.4,2552.3,19.725]
[1748017295522,3.91775338,2552.5,2552.3,19.725]
[1748017295730,3.9176464,2552.6,2552.4,27.725]
[1748017296298,4.74601557,2552.7,2552.4,27.725]
[1748017296299,3.91772771,2552.5,2552.4,8.0]
[1748017296538,3.91772771,2552.5,2552.4,27.725]
[1748017296837,3.91803471,2552.3,2552.2,16.913]
[1748017297138,3.91803471,2552.3,2552.2,36.638]
[1748017297501,3.91849529,2552.0,2551.9,16.909]
[1748017297744,3.91849529,2552.0,2551.9,36.634]
[1748017297966,4.67209529,2552.0,2551.9,36.634]
[1748017298814,4.67209529,2552.0,2551.9,16.909]
[1748017299012,4.67209529,2552.0,2551.9,36.635]
[1748017300136,4.67209529,2552.0,2551.9,16.909]
[1748017300323,5.53113899,2552.0,2551.9,36.635]
[1748017300527,4.67209529,2552.0,2551.9,36.635]
[1748017300737,3.91849529,2552.0,2551.9,36.635]
[1748017301203,3.91849529,2552.0,2551.9,16.909]
[1748017301404,3.91849529,2552.0,2551.9,36.636]
[1748017305253,3.91849529,2552.0,2551.9,36.637]
[1748017306504,4.37608106,2552.1,2551.9,36.637]
[1748017306714,4.37616313,2552.1,2551.9,40.3007]
[1748017307223,3.91849529,2552.0,2551.9,36.637]
[1748017308724,4.73919529,2552.0,2551.9,36.637]
[1748017308939,4.73919529,2552.0,2551.9,36.638]
[1748017310249,9.04443901,2552.0,2551.9,16.909]
[1748017310434,3.91880241,2551.8,2551.7,19.729]
[1748017310755,4.73950241,2551.8,2551.7,19.729]
[1748017311321,5.19724172,2551.8,2551.7,19.729]
[1748017311528,4.37654172,2551.8,2551.7,19.729]
[1748017312454,5.19724172,2551.8,2551.7,19.729]
[1748017312653,7.77471589,2551.8,2551.7,19.729]
[1748017313825,8.13286691,2551.8,2551.7,19.729]
[1748017314533,3.91941679,2551.4,2551.3,16.913]
[1748017314743,3.91941679,2551.4,2551.3,36.644]
[1748017315656,3.91941679,2551.4,2551.3,16.913]
[1748017315826,5.53618715,2551.4,2551.3,36.644]
[1748017316025,5.53618715,2551.4,2551.3,16.913]
[1748017316225,5.53618715,2551.4,2551.3,36.425]
[1748017316659,4.70328715,2551.4,2551.3,36.427]
[1748017317559,4.70328715,2551.4,2551.3,16.913]
[1748017317762,3.91941679,2551.4,2551.3,36.427]
[1748017318664,3.91931096,2551.5,2551.3,36.427]
[1748017318817,0.45773931,2551.8,2551.3,36.427]
[1748017319019,4.37661672,2551.8,2551.5,0.8151]
[1748017319218,4.37661672,2551.8,2551.6,12.62851]
[1748017319481,4.37657322,2551.8,2551.6,12.62851]
[1748017319669,0.45773931,2551.8,2551.6,12.62851]
[1748017319966,4.37666665,2551.8,2551.6,12.62851]
[1748017320161,3.91895599,2551.7,2551.6,20.62851]
[1748017320662,3.91895599,2551.7,2551.6,19.747]
[1748017321241,3.91895599,2551.7,2551.6,39.261]
[1748017321561,3.91895599,2551.7,2551.6,8.0]
[1748017321725,3.91895599,2551.7,2551.6,39.261]
[1748017322928,3.91886368,2551.8,2551.7,8.0]
[1748017323161,3.91865972,2551.9,2551.7,11.94999309]
[1748017323378,3.91880241,2551.8,2551.7,11.94999309]
[1748017323755,3.91910957,2551.6,2551.5,0.8151]
[1748017324079,3.91910699,2551.7,2551.6,8.0]
[1748017324572,3.91834175,2552.1,2551.6,8.0]
[1748017324777,3.91877103,2551.9,2551.6,8.0]
[1748017324980,3.91877103,2551.9,2551.6,11.94999309]
[1748017325195,3.91883565,2551.8,2551.6,11.94999309]
[1748017325337,3.91834175,2552.1,2551.6,11.94999309]
[1748017325740,0.45773931,2552.3,2552.0,8.0]
[1748017326075,0.45773931,2552.3,2552.1,31.259]
[1748017326394,0.45773931,2552.3,2552.2,0.7511]
[1748017326737,0.45773931,2552.3,2552.2,8.7511]
[1748017327008,0.45773931,2552.3,2552.2,9.3011]
[1748017327163,0.45773931,2552.3,2552.2,13.21928822]
[1748017327370,0.45773931,2552.7,2552.4,8.0]
[1748017327574,0.45773931,2552.7,2552.6,8.0]
[1748017328284,0.45773931,2552.7,2552.6,12.68787423]
[1748017328469,0.45773931,2552.7,2552.6,13.23787423]
[1748017329048,0.05,2552.9,2552.8,13.22486731]
[1748017329243,0.05,2552.9,2552.8,32.73486731]
[1748017329488,0.05,2552.9,2552.8,35.49306191]
[1748017329940,2.3738079,2553.6,2553.1,0.8134]
[1748017330145,2.3738079,2553.6,2553.5,12.71539345]
[1748017330376,1.91606859,2553.6,2553.5,49.68739345]
[1748017331006,0.05,2553.9,2553.5,49.68739345]
[1748017331171,0.05,2553.9,2553.8,0.7992]
[1748017331366,0.05,2553.9,2553.8,24.45993341]
[1748017331814,0.05,2553.9,2553.8,25.00993341]
[1748017332114,0.05,2553.9,2553.8,25.44232038]
[1748017332266,0.05,2553.9,2553.8,25.00993341]
[1748017332467,0.05,2553.9,2553.8,26.63411887]
[1748017332712,1.96606859,2554.9,2554.6,0.7609]
[1748017332894,1.96606859,2554.9,2554.8,8.0]
[1748017333079,1.96606859,2554.9,2554.8,8.7676]
[1748017333284,1.96606859,2554.9,2554.8,12.68180072]
[1748017333509,1.96606859,2554.9,2554.8,15.43999532]
[1748017333674,1.96606859,2554.9,2554.8,11.5257946]
[1748017334094,1.96606859,2554.9,2554.8,42.7717946]
[1748017334306,1.96606859,2554.9,2554.8,42.7657946]
[1748017334769,5.8801161,2554.9,2554.8,27.499]
[1748017335776,3.96404751,2554.9,2554.8,27.499]
[1748017337086,0.05,2554.9,2554.8,27.499]
[1748017337611,0.05,2554.9,2554.8,39.237]
[1748017337910,0.05,2554.9,2554.8,43.14420072]
[1748017338070,0.05,2554.9,2554.8,47.88189381]
[1748017338472,0.05,2554.9,2554.8,43.96769309]
[1748017338872,0.05,2554.9,2554.8,12.73769309]
[1748017339090,0.05,2554.9,2554.8,43.96769309]
[1748017339299,0.05,2554.9,2554.8,47.88189381]
[1748017339979,8.0503,2555.0,2554.9,12.68044751]
[1748017340169,4.0504,2555.0,2554.9,13.32694066]
[1748017340375,0.05,2555.9,2555.8,3.91266922]
[1748017340613,0.05,2555.9,2555.8,60.80106922]
[1748017340797,0.05,2555.9,2555.8,61.94236771]
[1748017341003,0.05,2555.9,2555.8,58.02969849]
[1748017341216,3.96251613,2555.9,2555.8,24.896]
[1748017341419,0.05,2555.9,2555.8,56.12]
[1748017342720,0.05,2555.9,2555.8,60.81356922]
[1748017343575,0.05,2555.9,2555.8,61.24595619]
[1748017343775,0.05,2555.9,2555.8,44.34995619]
[1748017344017,0.05,2555.9,2555.8,48.29994928]
[1748017344218,0.05,2555.9,2555.8,16.64356231]
[1748017344380,0.05,2555.9,2555.8,43.91156922]
[1748017344898,0.05,2555.9,2555.8,24.85695619]
[1748017345845,0.05,2556.9,2556.7,0.7531]
[1748017345976,0.05,2556.9,2556.8,11.731]
[1748017346171,0.05,2556.9,2556.8,28.623]
[1748017346376,0.05,2556.9,2556.8,48.065]
[1748017346692,0.05,2556.9,2556.8,63.92613201]
[1748017347674,0.05,2556.9,2556.8,48.27899309]
[1748017347913,0.05,2556.9,2556.8,44.329]
[1748017348122,0.05,2556.9,2556.8,59.96813892]
[1748017348830,0.05,2556.9,2556.8,61.25182589]
[1748017350778,0.05,2557.9,2557.8,3.90960982]
[1748017350978,0.05,2557.9,2557.8,60.70450982]
[1748017351181,0.05,2557.9,2557.8,64.65450291]
[1748017352389,3.90782163,2559.0,2557.8,64.65450291]
[1748017352390,0.7663,2559.1,2558.0,0.7519]
[1748017352590,0.7663,2559.1,2558.8,8.0]
[1748017352799,0.7663,2559.1,2558.7,3.90822138]
[1748017352800,0.7663,2559.1,2558.9,16.88]
[1748017352987,0.7663,2559.1,2559.0,19.427]
[1748017353194,0.7663,2558.9,2558.1,8.0]
[1748017353412,3.90820928,2558.8,2558.3,8.0]
[1748017353590,0.55,2558.8,2558.3,8.0]
[1748017353789,0.55,2558.6,2558.3,8.0]
[1748017353992,3.90869293,2558.4,2558.3,8.0]
[1748017354225,4.45884571,2558.3,2558.0,16.88]
[1748017354426,0.55,2558.4,2558.1,27.427]
[1748017354625,1.07491479,2558.4,2558.0,16.88]
[1748017354803,4.45900337,2558.2,2558.0,16.88]
[1748017355007,5.29155132,2558.1,2558.0,16.88]
[1748017355213,5.29155132,2558.1,2558.0,36.307]
[1748017355532,1.3824,2558.1,2558.0,36.307]
[1748017355737,5.29155132,2558.1,2558.0,36.307]
[1748017355930,6.21161489,2558.1,2558.0,36.307]
[1748017356334,1.3824,2558.1,2558.0,36.307]
[1748017356714,5.29155132,2558.1,2558.0,36.307]
[1748017357312,0.815,2558.5,2558.0,44.307]
[1748017357647,0.55,2558.2,2558.1,8.0]
[1748017358239,0.55,2558.4,2558.1,8.0]
[1748017358439,4.45899851,2558.2,2558.1,8.0]
[1748017358646,4.45915132,2558.1,2558.0,16.88]
[1748017358862,4.45915132,2558.1,2558.0,36.302]
[1748017359003,0.55,2558.1,2558.0,36.302]
[1748017359506,0.55,2558.1,2558.0,44.302]
[1748017359815,0.55,2558.1,2558.0,24.88]
[1748017360117,0.55,2558.1,2558.0,44.302]
[1748017361445,0.55,2558.1,2558.0,44.301]
[1748017361850,0.55,2558.1,2558.0,36.301]
[1748017361851,4.45915132,2558.1,2558.0,36.301]
[1748017362520,5.24315132,2558.1,2558.0,36.301]
[1748017363358,6.15836871,2558.1,2558.0,36.301]
[1748017363768,6.15836871,2558.1,2558.0,16.88]
[1748017364056,2.24921739,2558.1,2558.0,36.301]
[1748017364205,0.8325,2558.7,2558.0,36.301]
[1748017364406,4.74073887,2558.7,2558.2,11.90886629]
[1748017364648,0.8325,2558.7,2558.2,11.90892527]
[1748017364820,4.74073866,2558.7,2558.3,8.0]
[1748017365034,0.8325,2558.7,2558.3,8.0]
[1748017365232,0.55,2558.6,2558.3,11.90882606]
[1748017365548,0.35579862,2559.0,2558.3,9.58179711]
[1748017365734,0.35579862,2559.0,2558.3,1.58179711]
[1748017366054,0.35579862,2559.0,2558.9,11.90792918]
[1748017366350,4.73976517,2559.4,2558.9,27.421]
[1748017366551,0.45773931,2559.7,2559.1,8.0]
[1748017366855,0.45773931,2559.7,2559.2,0.84946908]
[1748017367059,0.45773931,2559.7,2559.6,11.90686044]
[1748017367257,0.45773931,2559.7,2559.6,31.32486044]
[1748017367623,0.45773931,2559.7,2559.6,32.262108]
[1748017368356,0.05,2559.9,2559.8,8.0]
[1748017368745,0.55,2559.6,2559.2,19.716]
[1748017369064,0.55,2559.6,2559.3,19.74417614]
[1748017369359,0.55,2559.8,2559.6,8.0]
[1748017369561,0.55,2559.8,2559.7,0.32612517]
[1748017370156,4.45655519,2559.8,2559.7,27.74412517]
[1748017370342,4.45655519,2559.8,2559.7,8.32612517]
[1748017370547,4.45655519,2559.8,2559.7,19.74012517]
[1748017370720,4.45655519,2559.8,2559.7,0.32612517]
[1748017370921,5.37653016,2559.8,2559.7,19.74012517]
[1748017371732,5.37653016,2559.8,2559.7,0.32612517]
[1748017371958,5.37653016,2559.8,2559.7,19.74012517]
[1748017372185,4.45655519,2559.8,2559.7,19.74012517]
[1748017372346,0.55,2559.8,2559.7,19.74012517]
[1748017372523,0.55,2559.8,2559.7,27.74012517]